fUST/lending_fUST_20250506
["ID","MTS","AMOUNT","RATE_DAILY","PERIOD"]
[359991769,1746466274401,-400.0,0.0003452,8]
[359991770,1746466274410,-712.21,0.0003452,8]
[359991771,1746466274419,-400.0,0.0003452,2]
[359991772,1746466274430,-1249.89,0.0003452,8]
[359991773,1746466274440,-411.12,0.0003452,8]
[359991774,1746466274451,-2513.46,0.0003452,8]
[359991775,1746466274460,-400.0,0.0003452,8]
[359991776,1746466274470,-1291.97,0.0003452,8]
[359991777,1746466274480,-400.0,0.0003452,8]
[359991778,1746466274488,-400.0,0.0003452,8]
[359991779,1746466274497,-2000.0,0.00034521,2]
[359991780,1746466274507,-1200.0,0.00034538,3]
[359991781,1746466274516,-1295.80383713,0.0003459,31]
[359991782,1746466274527,-8588.12,0.000346,30]
[359991783,1746466274536,-900.0,0.00034768,5]
[359991784,1746466274545,-1692.68,0.00034794,8]
[359991785,1746466274554,-408.19,0.00034794,8]
[359991786,1746466274563,-400.0,0.00034794,8]
[359991787,1746466274572,-400.0,0.00034794,8]
[359991788,1746466274580,-497.81,0.00034794,8]
[359991789,1746466274589,-400.0,0.00034794,8]
[359991790,1746466274599,-480.51,0.00034794,8]
[359991791,1746466274731,-441.76,0.00034794,8]
[359991792,1746466274742,-400.0,0.00034794,8]
[359991793,1746466274751,-663.75,0.00034794,8]
[359991794,1746466274761,-468.83,0.00034794,8]
[359991795,1746466274771,-400.0,0.00034794,8]
[359991796,1746466274779,-400.0,0.00034794,8]
[359991797,1746466274789,-650.06,0.00034794,8]
[359991798,1746466274798,-400.0,0.00034794,8]
[359991799,1746466274808,-400.0,0.00034794,8]
[359991800,1746466274817,-479.36481394,0.00034794,8]
[359991801,1746466274826,-424.49,0.00034794,8]
[359991802,1746466274837,-400.0,0.00034794,8]
[359991803,1746466274849,-400.0,0.00034794,8]
[359991804,1746466274861,-400.0,0.00034794,8]
[359991805,1746466274873,-584.19,0.00034794,8]
[359991806,1746466274885,-544.01,0.00034794,8]
[359991807,1746466274895,-445.11,0.00034794,8]
[359991808,1746466274906,-400.0,0.00034794,8]
[359991809,1746466274918,-400.0,0.00034794,8]
[359991810,1746466274927,-400.0,0.00034794,8]
[359991811,1746466274936,-596.14,0.00034794,8]
[359991812,1746466274946,-407.26,0.00034794,8]
[359991813,1746466274955,-400.0,0.00034794,8]
[359991814,1746466274964,-723.92,0.00034794,8]
[359991815,1746466274975,-400.0,0.00034794,8]
[359991816,1746466274985,-601.89,0.00034794,8]
[359991817,1746466274994,-400.0,0.00034794,8]
[359991818,1746466275003,-516.84,0.00034794,8]
[359991819,1746466275013,-744.57,0.00034794,8]
[359991820,1746466275023,-856.46,0.00034794,8]
[359991821,1746466275032,-763.86,0.00034794,8]
[359991822,1746466275042,-500.0,0.00034794,8]
[359991823,1746466275052,-400.0,0.00034794,8]
[359991824,1746466275062,-400.0,0.00034794,8]
[359991825,1746466275072,-508.21,0.00034794,8]
[359991826,1746466275081,-400.0,0.00034794,8]
[359991827,1746466275091,-502.77,0.00034794,8]
[359991828,1746466275101,-2573.19,0.00034794,8]
[359991829,1746466275112,-400.0,0.00034794,8]
[359991830,1746466275122,-412.76,0.00034794,8]
[359991831,1746466275132,-1858.43,0.00034794,8]
[359991832,1746466275141,-663.7,0.00034794,8]
[359991833,1746466275151,-752.3,0.00034794,8]
[359991834,1746466275160,-400.0,0.00034794,8]
[359991835,1746466275170,-3742.18,0.00034794,8]
[359991836,1746466275180,-400.0,0.00034794,8]
[359991837,1746466275189,-742.46,0.00034794,8]
[359991838,1746466275199,-791.14,0.00034794,8]
[359991839,1746466275208,-500.0,0.00034794,8]
[359991840,1746466275218,-400.0,0.00034794,8]
[359991841,1746466275227,-400.0,0.00034794,8]
[359991842,1746466275236,-319.8011094,0.00034794,8]
[359991843,1746466275246,-400.0,0.00034794,8]
[359991844,1746466275255,-424.25,0.00034794,8]
[359991845,1746466275264,-400.0,0.00034794,8]
[359991846,1746466275277,-400.0,0.00034794,8]
[359991847,1746466275288,-400.0,0.00034794,8]
[359991848,1746466275297,-971.48,0.00034794,8]
[359991849,1746466275306,-400.0,0.00034794,8]
[359991850,1746466275317,-410.74,0.00034794,8]
[359991851,1746466275326,-400.0,0.00034794,8]
[359991852,1746466275336,-502.97,0.00034794,8]
[359991853,1746466275346,-1385.97,0.00034794,8]
[359991854,1746466275356,-828.56,0.00034794,8]
[359991855,1746466275366,-1013.68,0.00034794,8]
[359991856,1746466275375,-904.75,0.00034794,8]
[359991857,1746466275384,-400.0,0.00034794,8]
[359991858,1746466275393,-1542.95,0.00034794,8]
[359991859,1746466275403,-544.83,0.00034794,8]
[359991860,1746466275412,-906.63,0.00034794,8]
[359991861,1746466275421,-400.0,0.00034794,8]
[359991862,1746466275431,-899.92,0.00034794,8]
[359991863,1746466275439,-400.0,0.00034794,8]
[359991864,1746466275449,-400.0,0.00034794,8]
[359991865,1746466275458,-400.0,0.00034794,8]
[359991866,1746466275467,-1685.97,0.00034794,8]
[359991867,1746466275476,-400.0,0.00034794,8]
[359991868,1746466275486,-400.0,0.00034794,8]
[359991869,1746466275495,-400.0,0.00034794,8]
[359991870,1746466275504,-400.0,0.00034794,8]
[359991871,1746466275513,-411.02,0.00034794,8]
[359991872,1746466275526,-2098.43,0.00034794,8]
[359991873,1746466275535,-544.02,0.00034794,8]
[359991874,1746466275545,-942.66,0.00034794,8]
[359991875,1746466275554,-296.73408255,0.00034794,8]
[359991876,1746466275564,-400.0,0.00034794,8]
[359991877,1746466275574,-1085.21,0.00034794,8]
[359991878,1746466275583,-400.0,0.00034794,8]
[359991879,1746466275592,-400.0,0.00034794,8]
[359991880,1746466275601,-167.31317069,0.00034794,8]
[359991881,1746466275610,-400.0,0.00034794,8]
[359991882,1746466275619,-413.54,0.00034794,8]
[359991883,1746466275628,-400.0,0.00034794,8]
[359991884,1746466275638,-441.99,0.00034794,8]
[359991885,1746466275647,-400.0,0.00034794,8]
[359991886,1746466275656,-3512.58,0.00034794,2]
[359991887,1746466275666,-545.82,0.00034794,8]
[359991888,1746466275675,-400.0,0.00034794,8]
[359991889,1746466275684,-748.45,0.00034794,8]
[359991890,1746466275693,-1080.9,0.00034794,8]
[359991891,1746466275702,-617.8,0.00034794,8]
[359991892,1746466275711,-400.0,0.00034794,8]
[359991893,1746466275720,-521.08,0.00034794,8]
[359991894,1746466275729,-400.0,0.00034794,8]
[359991895,1746466275738,-580.82,0.00034794,8]
[359991896,1746466275747,-1700.23,0.00034794,8]
[359991897,1746466275756,-400.0,0.00034794,8]
[359991898,1746466275765,-400.0,0.00034794,8]
[359991899,1746466275776,-421.77,0.00034794,8]
[359991900,1746466275786,-1322.26,0.00034794,8]
[359991901,1746466275795,-400.0,0.00034794,8]
[359991902,1746466275805,-400.0,0.00034794,8]
[359991903,1746466275814,-2273.92,0.00034794,8]
[359991904,1746466275823,-400.0,0.00034794,8]
[359991905,1746466275833,-942.85,0.00034794,8]
[359991906,1746466275843,-1099.01,0.00034794,8]
[359991907,1746466275853,-2641.87,0.00034794,8]
[359991908,1746466275862,-400.0,0.00034794,8]
[359991909,1746466275871,-504.9,0.00034794,8]
[359991910,1746466275880,-2078.31,0.00034794,8]
[359991911,1746466275889,-1796.69,0.00034794,8]
[359991912,1746466275898,-427.08363811,0.00034794,8]
[359991913,1746466275907,-404.27,0.00034794,8]
[359991914,1746466275916,-400.0,0.00034794,8]
[359991915,1746466275925,-997.13,0.00034794,8]
[359991916,1746466275935,-2875.2,0.00034794,8]
[359991917,1746466275944,-933.37,0.00034794,8]
[359991918,1746466275955,-400.0,0.00034794,8]
[359991919,1746466275964,-400.0,0.00034794,8]
[359991920,1746466275973,-2166.02,0.00034794,8]
[359991921,1746466275982,-400.0,0.00034794,8]
[359991922,1746466275992,-495.11,0.00034794,8]
[359991923,1746466276001,-478.21,0.00034794,8]
[359991924,1746466276011,-828.45,0.00034794,8]
[359991925,1746466276021,-400.0,0.00034794,8]
[359991926,1746466276030,-2370.89,0.00034794,8]
[359991927,1746466276039,-833.54,0.00034794,8]
[359991928,1746466276048,-400.0,0.00034794,8]
[359991929,1746466276059,-11132.27,0.00034794,8]
[359991930,1746466276068,-414.2,0.00034794,8]
[359991931,1746466276079,-1942.95,0.00034794,8]
[359991932,1746466276088,-617.39,0.00034794,8]
[359991933,1746466276097,-400.0,0.00034794,8]
[359991934,1746466276107,-534.63,0.00034794,8]
[359991935,1746466276116,-254.94706491,0.00034794,8]
[359991936,1746466276126,-400.0,0.00034794,8]
[359991937,1746466276135,-400.0,0.00034794,8]
[359991938,1746466276145,-400.0,0.00034794,8]
[359991939,1746466276154,-832.63,0.00034794,8]
[359991940,1746466276164,-400.0,0.00034794,8]
[359991941,1746466276175,-937.4,0.00034794,8]
[359991942,1746466276185,-400.0,0.00034794,8]
[359991943,1746466276194,-400.0,0.00034794,8]
[359991944,1746466276204,-9074.6,0.00034794,8]
[359991945,1746466276214,-1547.41,0.00034794,8]
[359991946,1746466276224,-1484.01,0.00034794,8]
[359991947,1746466276234,-400.0,0.00034794,8]
[359991948,1746466276243,-2080.35,0.00034794,8]
[359991949,1746466276253,-2232.97,0.00034794,8]
[359991950,1746466276262,-1691.97,0.00034794,8]
[359991951,1746466276271,-400.0,0.00034794,8]
[359991952,1746466276285,-546.08981405,0.00034794,8]
[359991953,1746466276294,-400.0,0.00034794,8]
[359991954,1746466276304,-400.0,0.00034794,8]
[359991955,1746466276314,-3521.81,0.00034794,8]
[359991956,1746466276325,-708.96,0.00034794,8]
[359991957,1746466276334,-400.0,0.00034794,8]
[359991958,1746466276343,-551.13,0.00034794,8]
[359991959,1746466276352,-553.1,0.00034794,8]
[359991960,1746466276360,-586.27,0.00034794,8]
[359991961,1746466276370,-400.0,0.00034794,8]
[359991962,1746466276379,-400.0,0.00034794,8]
[359991963,1746466276389,-1186.53,0.00034794,8]
[359991964,1746466276398,-535.86,0.00034794,8]
[359991965,1746466276407,-400.0,0.00034794,8]
[359991966,1746466276416,-1986.73,0.00034794,8]
[359991967,1746466276426,-462.97,0.00034794,8]
[359991968,1746466276435,-406.42,0.00034794,8]
[359991969,1746466276444,-470.61921998,0.00034794,8]
[359991970,1746466276453,-400.0,0.00034794,8]
[359991971,1746466276463,-1488.07,0.00034794,8]
[359991972,1746466276472,-607.06,0.00034794,8]
[359991973,1746466276481,-4132.62,0.00034794,8]
[359991974,1746466276490,-1507.7,0.00034794,8]
[359991975,1746466276499,-1135.42,0.00034794,8]
[359991976,1746466276509,-681.33,0.00034794,8]
[359991977,1746466276518,-400.0,0.00034794,8]
[359991978,1746466276529,-1080.08,0.00034794,8]
[359991979,1746466276539,-400.0,0.00034794,8]
[359991980,1746466276548,-735.3,0.00034794,8]
[359991981,1746466276558,-400.0,0.00034794,8]
[359991982,1746466276568,-681.17,0.00034794,8]
[359991983,1746466276577,-400.0,0.00034794,8]
[359991984,1746466276587,-4785.9,0.00034794,8]
[359991985,1746466276596,-400.0,0.00034794,8]
[359991986,1746466276605,-400.0,0.00034794,8]
[359991987,1746466276615,-400.0,0.00034794,8]
[359991988,1746466276625,-578.15,0.00034794,8]
[359991989,1746466276634,-25922.47,0.00034794,8]
[359991990,1746466276643,-400.0,0.00034794,8]
[359991991,1746466276652,-3661.81,0.00034794,8]
[359991992,1746466276662,-400.0,0.00034794,8]
[359991993,1746466276671,-400.0,0.00034794,8]
[359991994,1746466276681,-2781.29,0.00034794,8]
[359991995,1746466276690,-1064.62,0.00034794,8]
[359991996,1746466276700,-473.3516523,0.00034794,8]
[359991997,1746466276709,-455.72701685,0.00034794,8]
[359991998,1746466276718,-400.0,0.00034794,8]
[359991999,1746466276727,-611.37,0.00034794,8]
[359992000,1746466276737,-400.0,0.00034794,8]
[359992001,1746466276747,-400.0,0.00034794,8]
[359992002,1746466276756,-3135.4,0.00034794,8]
[359992003,1746466276765,-1911.03,0.00034794,8]
[359992004,1746466276776,-3885.96,0.00034794,8]
[359992005,1746466276785,-7691.86,0.00034794,8]
[359992006,1746466276795,-408.8007049,0.00034794,8]
[359992007,1746466276804,-4527.66,0.00034794,8]
[359992008,1746466276814,-400.0,0.00034794,8]
[359992009,1746466276823,-7054.49,0.00034794,8]
[359992010,1746466276832,-516.96,0.00034794,8]
[359992011,1746466276841,-604.47,0.00034794,8]
[359992012,1746466276851,-553.59,0.00034794,8]
[359992013,1746466276860,-400.0,0.00034794,8]
[359992014,1746466276871,-1553.26,0.00034794,8]
[359992015,1746466276880,-400.0,0.00034794,8]
[359992016,1746466276889,-1471.97,0.00034794,8]
[359992017,1746466276899,-400.0,0.00034794,8]
[359992018,1746466276909,-784.14,0.00034794,8]
[359992019,1746466276918,-566.19,0.00034794,8]
[359992020,1746466276928,-2405.99,0.00034794,8]
[359992021,1746466276938,-1800.71,0.00034794,8]
[359992022,1746466276947,-659.71,0.00034794,8]
[359992023,1746466276957,-400.0,0.00034794,8]
[359992024,1746466276966,-3076.91,0.00034794,8]
[359992025,1746466276976,-755.88,0.00034794,8]
[359992026,1746466276985,-400.0,0.00034794,8]
[359992027,1746466276995,-712.21,0.00034794,8]
[359992028,1746466277004,-400.0,0.00034794,2]
[359992029,1746466277014,-1249.89,0.00034794,8]
[359992030,1746466277023,-411.12,0.00034794,8]
[359992031,1746466277033,-2513.46,0.00034794,8]
[359992032,1746466277042,-400.0,0.00034794,8]
[359992033,1746466277051,-1291.97,0.00034794,8]
[359992034,1746466277061,-250.0,0.000348,14]
[359992035,1746466277071,-250.0,0.000348,14]
[359992036,1746466277080,-250.0,0.000348,14]
[359992037,1746466277090,-250.0,0.000348,14]
[359992038,1746466277099,-261.1,0.000348,14]
[359992039,1746466277109,-158.22752525,0.00034816,5]
[359992040,1746466277119,-1000.0,0.00034821,5]
[359992041,1746466277128,-3149.86339391,0.0003487,4]
[359992042,1746466277138,-52133.17444072,0.0003498,7]
[359992043,1746466277147,-2510.99895943,0.00035,2]
[359992044,1746466277156,-215.81775,0.00035,5]
[359992045,1746466277165,-200.0,0.00035,14]
[359992046,1746466277174,-1500.5725094,0.00035,2]
[359992047,1746466277183,-160.0,0.00035,7]
[359992048,1746466277193,-128001.96116118,0.00035,2]
[359992049,1746466277202,-1737.74511308,0.00035,30]
[359992050,1746466277212,-10609.06741123,0.00035,2]
[359992051,1746466277222,-3055.8954692,0.00035,30]
[359992052,1746466277232,-210.59134804,0.00035,30]
[359992053,1746466277242,-2401.83723647,0.00035,10]
[359992054,1746466277251,-1147.11588501,0.00035,7]
[359992055,1746466277262,-164.21775,0.00035,5]
[359992056,1746466277273,-9000.94289556,0.00035,4]
[359992057,1746466277287,-1692.68,0.00035068,8]
[359992058,1746466277296,-408.19,0.00035068,8]
[359992059,1746466277305,-400.0,0.00035068,8]
[359992060,1746466277314,-282.10619974,0.00035068,8]
[359992061,1746466277324,-497.81,0.00035068,8]
[359992062,1746466277333,-400.0,0.00035068,8]
[359992063,1746466277342,-480.51,0.00035068,8]
[359992064,1746466277351,-441.76,0.00035068,8]
[359992065,1746466277363,-468.328892,0.00035068,8]
[359992066,1746466277373,-663.75,0.00035068,8]
[359992067,1746466277383,-468.83,0.00035068,8]
[359992068,1746466277393,-400.0,0.00035068,8]
[359992069,1746466277404,-400.0,0.00035068,8]
[359992070,1746466277413,-650.06,0.00035068,8]
[359992071,1746466277423,-400.0,0.00035068,8]
[359992072,1746466277432,-473.47610154,0.00035068,8]
[359992073,1746466277442,-424.49,0.00035068,8]
[359992074,1746466277451,-400.0,0.00035068,8]
[359992075,1746466277461,-400.0,0.00035068,8]
[359992076,1746466277470,-400.0,0.00035068,8]
[359992077,1746466277479,-584.19,0.00035068,8]
[359992078,1746466277489,-544.01,0.00035068,8]
[359992079,1746466277498,-445.11,0.00035068,8]
[359992080,1746466277508,-400.0,0.00035068,8]
[359992081,1746466277517,-400.0,0.00035068,8]
[359992082,1746466277529,-400.0,0.00035068,8]
[359992083,1746466277539,-596.14,0.00035068,8]
[359992084,1746466277669,-407.26,0.00035068,8]
[359992085,1746466277678,-400.0,0.00035068,8]
[359992086,1746466277688,-723.92,0.00035068,8]
[359992087,1746466277698,-400.0,0.00035068,8]
[359992088,1746466277708,-601.89,0.00035068,8]
[359992089,1746466277717,-400.0,0.00035068,8]
[359992090,1746466277726,-516.84,0.00035068,8]
[359992091,1746466277736,-744.57,0.00035068,8]
[359992092,1746466277745,-856.46,0.00035068,8]
[359992093,1746466277755,-763.86,0.00035068,8]
[359992094,1746466277764,-500.0,0.00035068,8]
[359992095,1746466277776,-400.0,0.00035068,8]
[359992096,1746466277785,-400.0,0.00035068,8]
[359992097,1746466277795,-508.21,0.00035068,8]
[359992098,1746466277804,-400.0,0.00035068,8]
[359992099,1746466277813,-502.77,0.00035068,8]
[359992100,1746466277823,-2573.19,0.00035068,8]
[359992101,1746466277832,-412.76,0.00035068,8]
[359992102,1746466277841,-400.0,0.00035068,8]
[359992103,1746466277850,-1858.43,0.00035068,8]
[359992104,1746466277859,-663.7,0.00035068,8]
[359992105,1746466277869,-752.3,0.00035068,8]
[359992106,1746466277878,-400.0,0.00035068,8]
[359992107,1746466277890,-3742.18,0.00035068,8]
[359992108,1746466277899,-386.67866979,0.00035068,8]
[359992109,1746466277908,-742.46,0.00035068,8]
[359992110,1746466277918,-791.14,0.00035068,8]
[359992111,1746466277927,-500.0,0.00035068,8]
[359992112,1746466277936,-400.0,0.00035068,8]
[359992113,1746466277945,-400.0,0.00035068,8]
[359992114,1746466277955,-400.0,0.00035068,8]
[359992115,1746466277964,-424.25,0.00035068,8]
[359992116,1746466277974,-400.0,0.00035068,8]
[359992117,1746466277984,-400.0,0.00035068,8]
[359992118,1746466277993,-257.46380145,0.00035068,8]
[359992119,1746466278003,-971.48,0.00035068,8]
[359992120,1746466278013,-400.0,0.00035068,8]
[359992121,1746466278023,-410.74,0.00035068,8]
[359992122,1746466278033,-475.16411722,0.00035068,8]
[359992123,1746466278042,-502.97,0.00035068,8]
[359992124,1746466278052,-1385.97,0.00035068,8]
[359992125,1746466278062,-828.56,0.00035068,8]
[359992126,1746466278072,-1013.68,0.00035068,8]
[359992127,1746466278082,-904.75,0.00035068,8]
[359992128,1746466278091,-400.0,0.00035068,8]
[359992129,1746466278102,-1542.95,0.00035068,8]
[359992130,1746466278111,-544.83,0.00035068,8]
[359992131,1746466278121,-906.63,0.00035068,8]
[359992132,1746466278131,-400.0,0.00035068,8]
[359992133,1746466278141,-899.92,0.00035068,8]
[359992134,1746466278152,-400.0,0.00035068,8]
[359992135,1746466278161,-400.0,0.00035068,8]
[359992136,1746466278173,-400.0,0.00035068,8]
[359992137,1746466278183,-1685.97,0.00035068,8]
[359992138,1746466278193,-400.0,0.00035068,8]
[359992139,1746466278203,-400.0,0.00035068,8]
[359992140,1746466278213,-400.0,0.00035068,8]
[359992141,1746466278223,-400.0,0.00035068,8]
[359992142,1746466278233,-411.02,0.00035068,8]
[359992143,1746466278243,-2098.43,0.00035068,8]
[359992144,1746466278252,-544.02,0.00035068,8]
[359992145,1746466278262,-942.66,0.00035068,8]
[359992146,1746466278272,-400.0,0.00035068,8]
[359992147,1746466278285,-1085.21,0.00035068,8]
[359992148,1746466278294,-400.0,0.00035068,8]
[359992149,1746466278304,-400.0,0.00035068,8]
[359992150,1746466278314,-400.0,0.00035068,8]
[359992151,1746466278325,-413.54,0.00035068,8]
[359992152,1746466278334,-400.0,0.00035068,8]
[359992153,1746466278343,-441.99,0.00035068,8]
[359992154,1746466278353,-432.63208587,0.00035068,8]
[359992155,1746466278364,-3512.58,0.00035068,2]
[359992156,1746466278374,-545.82,0.00035068,8]
[359992157,1746466278383,-400.0,0.00035068,8]
[359992158,1746466278393,-748.45,0.00035068,8]
[359992159,1746466278402,-1080.9,0.00035068,8]
[359992160,1746466278412,-617.8,0.00035068,8]
[359992161,1746466278421,-400.0,0.00035068,8]
[359992162,1746466278430,-521.08,0.00035068,8]
[359992163,1746466278439,-400.0,0.00035068,8]
[359992164,1746466278449,-580.82,0.00035068,8]
[359992165,1746466278458,-1700.23,0.00035068,8]
[359992166,1746466278467,-400.0,0.00035068,8]
[359992167,1746466278477,-400.0,0.00035068,8]
[359992168,1746466278486,-421.77,0.00035068,8]
[359992169,1746466278496,-1322.26,0.00035068,8]
[359992170,1746466278506,-400.0,0.00035068,8]
[359992171,1746466278515,-400.0,0.00035068,8]
[359992172,1746466278525,-2273.92,0.00035068,8]
[359992173,1746466278534,-400.0,0.00035068,8]
[359992174,1746466278543,-942.85,0.00035068,8]
[359992175,1746466278553,-1099.01,0.00035068,8]
[359992176,1746466278563,-2641.87,0.00035068,8]
[359992177,1746466278572,-544.11922285,0.00035068,8]
[359992178,1746466278581,-504.9,0.00035068,8]
[359992179,1746466278590,-2078.31,0.00035068,8]
[359992180,1746466278599,-1796.69,0.00035068,8]
[359992181,1746466278608,-404.27,0.00035068,8]
[359992182,1746466278618,-400.0,0.00035068,8]
[359992183,1746466278627,-997.13,0.00035068,8]
[359992184,1746466278637,-2875.2,0.00035068,8]
[359992185,1746466278648,-933.37,0.00035068,8]
[359992186,1746466278657,-400.0,0.00035068,8]
[359992187,1746466278667,-400.0,0.00035068,8]
[359992188,1746466278676,-2166.02,0.00035068,8]
[359992189,1746466278685,-400.0,0.00035068,8]
[359992190,1746466278695,-495.11,0.00035068,8]
[359992191,1746466278704,-478.21,0.00035068,8]
[359992192,1746466278714,-828.45,0.00035068,8]
[359992193,1746466278723,-400.0,0.00035068,8]
[359992194,1746466278732,-2370.89,0.00035068,8]
[359992195,1746466278741,-833.54,0.00035068,8]
[359992196,1746466278751,-400.0,0.00035068,8]
[359992197,1746466278761,-11132.27,0.00035068,8]
[359992198,1746466278770,-414.2,0.00035068,8]
[359992199,1746466278781,-1942.95,0.00035068,8]
[359992200,1746466278791,-617.39,0.00035068,8]
[359992201,1746466278801,-400.0,0.00035068,8]
[359992202,1746466278811,-534.63,0.00035068,8]
[359992203,1746466278821,-400.0,0.00035068,8]
[359992204,1746466278830,-400.0,0.00035068,8]
[359992205,1746466278840,-400.0,0.00035068,8]
[359992206,1746466278849,-832.63,0.00035068,8]
[359992207,1746466278859,-400.0,0.00035068,8]
[359992208,1746466278869,-937.4,0.00035068,8]
[359992209,1746466278879,-400.0,0.00035068,8]
[359992210,1746466278889,-400.0,0.00035068,8]
[359992211,1746466278899,-9074.6,0.00035068,8]
[359992212,1746466278909,-1547.41,0.00035068,8]
[359992213,1746466278919,-1484.01,0.00035068,8]
[359992214,1746466278932,-400.0,0.00035068,8]
[359992215,1746466278942,-2080.35,0.00035068,8]
[359992216,1746466278951,-2232.97,0.00035068,8]
[359992217,1746466278961,-1691.97,0.00035068,8]
[359992218,1746466278971,-400.0,0.00035068,8]
[359992219,1746466278981,-400.0,0.00035068,8]
[359992220,1746466278990,-400.0,0.00035068,8]
[359992221,1746466279000,-3521.81,0.00035068,8]
[359992222,1746466279009,-708.96,0.00035068,8]
[359992223,1746466279018,-400.0,0.00035068,8]
[359992224,1746466279028,-551.13,0.00035068,8]
[359992225,1746466279038,-553.1,0.00035068,8]
[359992226,1746466279047,-586.27,0.00035068,8]
[359992227,1746466279057,-400.0,0.00035068,8]
[359992228,1746466279066,-400.0,0.00035068,8]
[359992229,1746466279076,-1186.53,0.00035068,8]
[359992230,1746466279085,-535.86,0.00035068,8]
[359992231,1746466279095,-400.0,0.00035068,8]
[359992232,1746466279104,-1986.73,0.00035068,8]
[359992233,1746466279114,-462.97,0.00035068,8]
[359992234,1746466279123,-358.0,0.00035068,8]
[359992235,1746466279133,-406.42,0.00035068,8]
[359992236,1746466279142,-358.0,0.00035068,8]
[359992237,1746466279152,-358.0,0.00035068,8]
[359992238,1746466279162,-358.0,0.00035068,8]
[359992239,1746466279171,-358.0,0.00035068,8]
[359992240,1746466279181,-358.0,0.00035068,8]
[359992241,1746466279191,-400.0,0.00035068,8]
[359992242,1746466279201,-480.6094146,0.00035068,8]
[359992243,1746466279210,-1488.07,0.00035068,8]
[359992244,1746466279220,-607.06,0.00035068,8]
[359992245,1746466279229,-4132.62,0.00035068,8]
[359992246,1746466279239,-1507.7,0.00035068,8]
[359992247,1746466279248,-1135.42,0.00035068,8]
[359992248,1746466279258,-681.33,0.00035068,8]
[359992249,1746466279267,-400.0,0.00035068,8]
[359992250,1746466279280,-1080.08,0.00035068,8]
[359992251,1746466279290,-400.0,0.00035068,8]
[359992252,1746466279299,-735.3,0.00035068,8]
[359992253,1746466279309,-400.0,0.00035068,8]
[359992254,1746466279318,-681.17,0.00035068,8]
[359992255,1746466279327,-400.0,0.00035068,8]
[359992256,1746466279336,-4785.9,0.00035068,8]
[359992257,1746466279346,-400.0,0.00035068,8]
[359992258,1746466279357,-400.0,0.00035068,8]
[359992259,1746466279367,-400.0,0.00035068,8]
[359992260,1746466279376,-578.15,0.00035068,8]
[359992261,1746466279386,-25922.47,0.00035068,8]
[359992262,1746466279395,-400.0,0.00035068,8]
[359992263,1746466279404,-3661.81,0.00035068,8]
[359992264,1746466279414,-400.0,0.00035068,8]
[359992265,1746466279424,-400.0,0.00035068,8]
[359992266,1746466279434,-2781.29,0.00035068,8]
[359992267,1746466279444,-1064.62,0.00035068,8]
[359992268,1746466279454,-400.0,0.00035068,8]